bitfinex/quotes_BTCUSD_20260110
["timestamp","ask_amount","ask_price","bid_price","bid_amount"]
[1768070634002,0.02208,90587.0,90578.0,0.35223645]
[1768070634161,0.02208,90587.0,90578.0,0.34119625]
[1768070641760,0.00019542,90590.0,90587.0,0.000999]
[1768070641960,0.00019542,90590.0,90589.0,0.10599653]
[1768070642825,0.02227542,90590.0,90589.0,0.10599653]
[1768070644865,0.02227542,90590.0,90580.0,0.30383298]
[1768070645068,0.02227542,90590.0,90587.0,0.10599653]
[1768070647991,0.00019542,90590.0,90587.0,0.10599653]
[1768070648289,0.02208,90589.0,90587.0,0.10599653]
[1768070649469,0.02208,90589.0,90587.0,0.10595141]
[1768070654750,0.02208,90588.0,90587.0,0.10595141]
[1768070658304,0.00019542,90590.0,90587.0,0.10595141]
[1768070658468,0.02208,90588.0,90587.0,0.10595141]
[1768070666165,0.00019542,90590.0,90587.0,0.10595141]
[1768070666366,0.02208,90589.0,90587.0,0.10595141]
[1768070671406,0.00019542,90590.0,90587.0,0.10595141]
[1768070671623,0.02208,90588.0,90587.0,0.10595141]
[1768070676771,0.00019542,90590.0,90587.0,0.10595141]
[1768070676970,0.02208,90589.0,90587.0,0.10595141]
[1768070677439,0.00019542,90590.0,90587.0,0.10595141]
[1768070677651,0.02208,90588.0,90587.0,0.10595141]
[1768070678241,0.00019542,90590.0,90587.0,0.10595141]
[1768070678457,0.02208,90588.0,90587.0,0.10595141]
[1768070679329,0.00019542,90590.0,90587.0,0.10595141]
[1768070679511,0.02208,90588.0,90587.0,0.10595141]
[1768070680257,0.00019542,90590.0,90587.0,0.10595141]
[1768070680480,0.02208,90589.0,90587.0,0.10595141]
[1768070680696,0.00019542,90590.0,90587.0,0.10595141]
[1768070680889,0.02208,90589.0,90587.0,0.10595141]
[1768070681606,0.00019542,90590.0,90587.0,0.10595141]
[1768070681844,0.02208,90588.0,90587.0,0.10595141]
[1768070687493,0.02208,90588.0,90587.0,0.10588255]
[1768070688280,0.00019542,90590.0,90587.0,0.10588255]
[1768070688483,0.02208,90588.0,90587.0,0.10588255]
[1768070693428,0.02208,90588.0,90587.0,0.10577478]
[1768070696177,0.00019542,90590.0,90587.0,0.10577478]
[1768070696344,0.02208,90588.0,90587.0,0.10577478]
[1768070698893,0.00019542,90590.0,90587.0,0.10577478]
[1768070699048,0.02208,90589.0,90587.0,0.10577478]
[1768070703399,0.00019542,90590.0,90587.0,0.10577478]
[1768070703614,0.02208,90588.0,90587.0,0.10577478]
[1768070706651,0.00019542,90590.0,90587.0,0.10577478]
[1768070706840,0.02208,90588.0,90587.0,0.10577478]
[1768070707205,0.02208,90588.0,90587.0,0.15541605]
[1768070707859,0.02208,90588.0,90587.0,0.10577478]
[1768070708257,0.02208,90588.0,90587.0,0.10572967]
[1768070718982,0.00019542,90590.0,90587.0,0.10572967]
[1768070719319,0.02208,90589.0,90587.0,0.10572967]
[1768070719925,0.02208,90588.0,90587.0,0.10572967]
[1768070729648,0.02208,90588.0,90587.0,0.15537094]
[1768070730252,0.02208,90588.0,90587.0,0.10572967]
[1768070731240,0.02208,90588.0,90587.0,0.15537094]
[1768070731642,0.02208,90588.0,90587.0,0.10572967]
[1768070732399,0.02208,90588.0,90587.0,0.15537094]
[1768070732961,0.02208,90588.0,90587.0,0.10572967]
[1768070733413,0.00019542,90590.0,90588.0,0.000999]
[1768070733566,0.02208,90589.0,90588.0,0.000999]
[1768070735984,0.02208,90589.0,90588.0,0.05040541]
[1768070736202,0.02208,90589.0,90587.0,0.10572967]
[1768070739185,0.02208,90589.0,90587.0,0.15513608]
[1768070739474,0.00019542,90590.0,90587.0,0.15513608]
[1768070739475,0.00019542,90590.0,90588.0,0.04940641]
[1768070739706,0.02178,90589.0,90587.0,0.15513608]
[1768070739932,0.00019542,90590.0,90587.0,0.15513608]
[1768070739933,0.02208,90588.0,90587.0,0.15513608]
[1768070740505,0.00019542,90590.0,90587.0,0.15513608]
[1768070740706,0.02208,90588.0,90587.0,0.15513608]
[1768070741315,0.02208,90588.0,90587.0,0.10572967]
[1768070742438,0.02208,90588.0,90587.0,0.15513608]
[1768070742667,0.02208,90588.0,90587.0,0.10572967]
[1768070749327,0.00019542,90590.0,90583.0,0.01103959]
[1768070749530,0.02208,90589.0,90588.0,0.1148093]
[1768070750018,0.02208,90589.0,90588.0,0.16421571]
[1768070750358,0.02208,90589.0,90588.0,0.1148093]
[1768070752400,0.02208,90589.0,90588.0,0.16065948]
[1768070753521,0.02208,90589.0,90588.0,0.1148093]
[1768070753869,0.02208,90589.0,90588.0,0.16065948]
[1768070756022,0.02208,90589.0,90588.0,0.1148093]
[1768070756434,0.00019542,90590.0,90588.0,0.1148093]
[1768070756594,0.02208,90589.0,90588.0,0.1148093]
[1768070756790,0.02208,90589.0,90588.0,0.16065948]
[1768070757041,0.00019542,90590.0,90589.0,0.04585018]
[1768070757456,0.02227542,90590.0,90588.0,0.1148093]
[1768070757783,0.02227542,90590.0,90589.0,0.04585018]
[1768070758230,0.02227542,90590.0,90588.0,0.1148093]
[1768070758848,0.00019542,90590.0,90589.0,0.04585018]
[1768070759014,0.02227542,90590.0,90588.0,0.1148093]
[1768070759213,0.02208,90589.0,90588.0,0.1148093]
[1768070759636,0.02208,90589.0,90588.0,0.16065948]
[1768070760473,0.00019542,90590.0,90589.0,0.04585018]
[1768070760652,0.02227542,90590.0,90589.0,0.04585018]
[1768070761013,0.00019542,90590.0,90589.0,0.04585018]
[1768070761215,0.00019542,90590.0,90588.0,0.1148093]
[1768070761384,0.02227542,90590.0,90588.0,0.1148093]
[1768070762527,0.02227542,90590.0,90589.0,0.04585018]
[1768070763431,0.02227542,90590.0,90588.0,0.1148093]
[1768070763732,0.00019542,90590.0,90588.0,0.1148093]
[1768070764030,0.02208,90589.0,90588.0,0.16074997]
[1768070767771,0.00019542,90590.0,90588.0,0.16074997]
[1768070767953,0.00019542,90590.0,90589.0,0.04594067]
[1768070768164,0.02227542,90590.0,90589.0,0.04594067]
[1768070768714,0.02227542,90590.0,90588.0,0.1148093]
[1768070770009,0.02227542,90590.0,90589.0,0.04594067]
[1768070770451,0.06981342,90590.0,90588.0,0.1148093]
[1768070770650,0.01103898,90588.0,90584.0,0.01103801]
[1768070770867,0.08085216,90590.0,90584.0,0.01103801]
[1768070771632,0.06981342,90590.0,90584.0,0.01103801]
[1768070772718,0.04773342,90590.0,90584.0,0.01103801]
[1768070772938,0.047538,90588.0,90584.0,0.01103801]
[1768070773188,0.05857698,90588.0,90584.0,0.0109929]
[1768070773768,0.05857698,90588.0,90584.0,0.01094779]
[1768070773956,0.01103898,90588.0,90584.0,0.01094779]
[1768070774750,0.03311886,90589.0,90584.0,0.01094779]
[1768070775700,0.05857711,90587.0,90584.0,0.01094779]
[1768070775841,0.01103898,90588.0,90577.0,0.29278898]
[1768070775842,0.047538,90586.0,90577.0,0.29278898]
[1768070776049,0.04354599,90586.0,90577.0,0.29278898]
[1768070776294,0.01103898,90588.0,90577.0,0.29278898]
[1768070776450,0.01103898,90588.0,90586.0,0.00060807]
[1768070777520,0.02208,90589.0,90586.0,0.00060807]
[1768070780261,0.02208,90589.0,90586.0,0.00056296]
[1768070780878,0.02208,90589.0,90587.0,0.04594067]
[1768070781465,0.02208,90589.0,90586.0,0.00056296]
[1768070784619,0.02208,90589.0,90586.0,0.00040735]
[1768070786637,0.02208,90589.0,90586.0,0.00021438]
[1768070792318,0.02208,90589.0,90585.0,0.02208]
[1768070798376,0.02208,90589.0,90580.0,0.01103996]
[1768070798662,0.02208,90589.0,90581.0,0.02208]
[1768070799749,0.02208,90589.0,90581.0,0.03311984]
[1768070799951,0.02208,90589.0,90581.0,0.02208]
[1768070800124,0.02208,90589.0,90580.0,0.01103996]
[1768070800419,0.02208,90589.0,90581.0,0.02208]
[1768070800730,0.02208,90589.0,90581.0,0.03311984]
[1768070800882,0.02208,90589.0,90581.0,0.02208]
[1768070801354,0.02208,90589.0,90581.0,0.03311984]
[1768070801561,0.02208,90589.0,90581.0,0.02208]
[1768070801766,0.02208,90589.0,90580.0,0.01103996]
[1768070802100,0.02208,90589.0,90581.0,0.02208]
[1768070802306,0.02208,90589.0,90581.0,0.03311984]
[1768070803185,0.02208,90589.0,90581.0,0.01103984]
[1768070803868,0.02208,90589.0,90582.0,0.02208]
[1768070822218,0.02208,90589.0,90582.0,0.02197329]
[1768070832742,0.03311886,90589.0,90582.0,0.02181768]
[1768070833171,0.02208,90589.0,90582.0,0.02181768]
[1768070847734,0.02208,90589.0,90582.0,0.02166208]
[1768070853314,0.02208,90589.0,90576.0,0.01104045]
[1768070853315,0.04956893,90588.0,90555.0,0.22085914]
[1768070853513,0.0110402,90578.0,90563.0,0.01104203]
[1768070853715,0.00963138,90575.0,90571.0,0.02208]
[1768070853916,0.00963138,90575.0,90562.0,0.16004215]
[1768070854264,0.01104045,90576.0,90563.0,0.01104203]
[1768070854503,0.03263402,90577.0,90563.0,0.01104203]
[1768070855379,0.01104045,90576.0,90563.0,0.01104203]
[1768070855600,0.03263402,90577.0,90564.0,0.01104191]
[1768070855817,0.01104045,90576.0,90570.0,0.03363874]
[1768070857424,0.0576805,90575.0,90570.0,0.00050746]
[1768070859363,0.0576805,90575.0,90570.0,0.03364002]
[1768070859577,0.04663993,90575.0,90570.0,0.03364002]
[1768070859787,0.0576805,90575.0,90570.0,0.03364002]
[1768070860085,0.04663993,90575.0,90570.0,0.03364002]
[1768070860291,0.0576805,90575.0,90570.0,0.03364002]
[1768070860446,0.04663993,90575.0,90570.0,0.03364002]
[1768070861269,0.0576805,90575.0,90570.0,0.03364002]
[1768070863581,0.01104069,90574.0,90570.0,0.00050746]
[1768070864240,0.0576805,90575.0,90570.0,0.00050746]
[1768070865215,0.01104057,90575.0,90570.0,0.00050746]
[1768070867325,0.01104057,90575.0,90569.0,0.03313256]
[1768070868243,0.01104057,90575.0,90569.0,0.02619171]
[1768070869276,0.01104045,90576.0,90569.0,0.02619171]
[1768070869598,0.01104057,90575.0,90569.0,0.02619171]
[1768070871003,0.01104069,90574.0,90569.0,0.02619171]
[1768070873537,5.834e-05,90574.0,90569.0,0.02619171]
[1768070876449,3.4e-07,90574.0,90569.0,0.02619171]
[1768070879022,3.4e-07,90574.0,90569.0,0.0260361]
[1768070880530,0.01104103,90574.0,90569.0,0.02588049]
[1768070880746,0.01104081,90573.0,90569.0,0.02588049]
[1768070880899,0.01104081,90573.0,90563.0,0.04848218]
[1768070881080,0.01104081,90573.0,90564.0,0.03313256]
[1768070881524,0.01104103,90574.0,90564.0,0.03313256]
[1768070881525,0.01104103,90574.0,90564.0,0.08161474]
[1768070881704,3.4e-07,90574.0,90564.0,0.08161474]
[1768070881900,3.4e-07,90574.0,90564.0,0.04848218]
[1768070882251,3.4e-07,90574.0,90565.0,0.01104057]
[1768070883519,0.01104081,90573.0,90565.0,0.01104057]
[1768070883720,0.01104103,90574.0,90565.0,0.01104057]
[1768070883927,3.4e-07,90574.0,90565.0,0.01104057]
[1768070884092,0.01104103,90574.0,90565.0,0.01104057]
[1768070886690,0.01104081,90573.0,90565.0,0.01104057]
[1768070886809,0.01104103,90574.0,90565.0,0.01104057]
[1768070887216,3.4e-07,90574.0,90565.0,0.01104057]
[1768070888467,0.02212,90577.0,90565.0,0.01104057]
[1768070888640,0.02212,90577.0,90565.0,0.02208236]
[1768070889061,0.03316033,90577.0,90564.0,0.05952409]
[1768070889242,0.03316033,90577.0,90566.0,0.02212]
[1768070889599,0.03316033,90577.0,90567.0,0.292809]
[1768070889835,0.01104045,90576.0,90567.0,0.292809]
[1768070889978,0.01104057,90575.0,90567.0,0.292809]
[1768070890183,0.01104057,90575.0,90568.0,0.03313256]
[1768070890590,0.01104057,90575.0,90569.0,0.04666915]
[1768070894012,0.01104045,90576.0,90569.0,0.04666915]
[1768070894755,0.01104057,90575.0,90569.0,0.04666915]
[1768070895352,0.01104069,90574.0,90568.0,0.03313256]
[1768070895554,0.01104069,90574.0,90568.0,0.07980171]
[1768070895940,0.01104069,90574.0,90564.0,5.834e-05]
[1768070896170,0.01104069,90574.0,90569.0,0.01104069]
[1768070896407,0.04914195,90573.0,90569.0,0.01104069]
[1768070897858,0.04914195,90573.0,90569.0,0.01088508]
[1768070902302,0.01104057,90575.0,90569.0,0.01088508]
[1768070903297,0.06018264,90574.0,90569.0,0.01088508]
[1768070903490,0.04914195,90574.0,90569.0,0.01088508]
[1768070903896,0.01104057,90575.0,90569.0,0.01088508]
[1768070905004,0.06018264,90574.0,90569.0,0.01088508]
[1768070905350,0.04914195,90574.0,90569.0,0.01088508]
[1768070908114,0.01104057,90575.0,90569.0,0.01088508]
[1768070908312,0.01104069,90574.0,90569.0,0.01088508]
[1768070908514,0.01104057,90575.0,90569.0,0.01088508]
[1768070909232,0.01104069,90574.0,90569.0,0.01088508]
[1768070909601,0.01104057,90575.0,90569.0,0.01088508]
[1768070909800,0.01104069,90574.0,90569.0,0.01088508]
[1768070910033,0.01104057,90575.0,90569.0,0.01088508]
[1768070910244,0.01104069,90574.0,90569.0,0.01088508]
[1768070912157,0.06018215,90578.0,90569.0,0.01088508]
[1768070912381,0.02212,90573.0,90569.0,0.01088508]
[1768070920764,0.02212,90573.0,90569.0,0.01077373]
[1768070932063,0.03316081,90573.0,90569.0,0.01077373]
[1768070932302,0.02212,90573.0,90569.0,0.01077373]
[1768070932450,0.03316081,90573.0,90569.0,0.01077373]
[1768070932821,0.02212,90573.0,90569.0,0.01077373]
[1768070933648,0.03316081,90573.0,90569.0,0.01077373]
[1768070933849,0.02212,90573.0,90569.0,0.01077373]
[1768070953819,0.03316081,90573.0,90569.0,0.01077373]
[1768070954031,0.02007189,90573.0,90569.0,0.01077373]
[1768070955754,0.0311127,90573.0,90569.0,0.01077373]
[1768070956093,0.02007189,90573.0,90569.0,0.01077373]
[1768070957160,0.0311127,90573.0,90569.0,0.01077373]
[1768070957376,0.02007189,90573.0,90569.0,0.01077373]
[1768070959594,0.0311127,90573.0,90569.0,0.01077373]
[1768070960429,0.02007189,90573.0,90569.0,0.01077373]
[1768070973598,0.0311127,90573.0,90569.0,0.01077373]
[1768070973899,0.02007189,90573.0,90569.0,0.01077373]
[1768070974263,0.0311127,90573.0,90569.0,0.01077373]
[1768070974524,0.02007189,90573.0,90569.0,0.01077373]
[1768070974665,0.0311127,90573.0,90569.0,0.01077373]
[1768070975263,0.01104093,90572.0,90569.0,0.01077373]
[1768070975491,0.0311127,90573.0,90569.0,0.01077373]
[1768070975668,0.01104093,90572.0,90569.0,0.01077373]
[1768070978308,0.0311127,90573.0,90569.0,0.01077373]
[1768070980596,0.0311127,90573.0,90564.0,5.834e-05]
[1768070981742,0.02007189,90573.0,90564.0,5.834e-05]
[1768070987254,0.0311127,90573.0,90564.0,5.834e-05]
[1768070990564,0.02007189,90573.0,90564.0,5.834e-05]
[1768070991052,0.0311127,90573.0,90564.0,5.834e-05]
[1768070991452,0.02007189,90573.0,90564.0,5.834e-05]
[1768070991656,0.0311127,90573.0,90564.0,5.834e-05]
[1768070994973,0.02007189,90573.0,90564.0,5.834e-05]
[1768070997349,0.02007189,90573.0,90564.0,0.04902024]
[1768071000945,0.0311127,90573.0,90564.0,0.04902024]
[1768071001458,0.02007189,90573.0,90564.0,0.04902024]
[1768071001664,0.0311127,90573.0,90564.0,0.04902024]
[1768071001866,0.02007189,90573.0,90564.0,0.04902024]
[1768071002902,0.0311127,90573.0,90564.0,0.04902024]
[1768071003104,0.02007189,90573.0,90564.0,0.04902024]
[1768071011167,0.02007189,90573.0,90564.0,0.06006215]
[1768071012403,0.02007189,90573.0,90564.0,0.04902024]
[1768071020955,0.02007189,90573.0,90563.0,0.32403195]
[1768071021161,0.02007189,90573.0,90563.0,0.03111392]
[1768071021358,0.02007189,90573.0,90563.0,0.02007189]
[1768071022045,0.02007189,90573.0,90563.0,0.03111392]
[1768071022739,0.02007189,90573.0,90563.0,0.02007189]
[1768071025009,0.02007189,90573.0,90563.0,0.03111392]
[1768071025305,0.02007189,90573.0,90563.0,0.02007189]
[1768071026001,0.02007189,90573.0,90563.0,0.03111392]
[1768071027092,0.02007189,90573.0,90564.0,0.01104191]
[1768071029225,0.02007189,90573.0,90568.0,0.01104142]
[1768071029439,0.02007189,90573.0,90565.0,0.01104179]
[1768071029996,0.02007189,90573.0,90564.0,0.01104191]
[1768071031227,0.02007189,90573.0,90565.0,0.01104179]
[1768071031581,0.02007189,90573.0,90564.0,0.01104191]
[1768071031754,0.02007189,90573.0,90563.0,0.03111392]
[1768071032097,0.02007189,90573.0,90564.0,0.01104191]
[1768071033086,0.02007189,90573.0,90563.0,0.03111392]
[1768071033284,0.02007189,90573.0,90564.0,0.01104191]
[1768071034194,0.02007189,90573.0,90563.0,0.03111392]
[1768071034416,0.02007189,90573.0,90564.0,0.01104191]
[1768071034646,0.02007189,90573.0,90563.0,0.03111392]
[1768071036118,0.02007189,90573.0,90564.0,0.01104191]
[1768071037291,0.02007189,90573.0,90563.0,0.03111392]
[1768071037693,0.02007189,90573.0,90564.0,0.01104191]
[1768071039025,0.02007189,90573.0,90563.0,0.03111392]
[1768071039187,0.02007189,90573.0,90564.0,0.01104191]
[1768071041859,0.02007189,90573.0,90565.0,0.03313256]
[1768071052419,0.0311127,90573.0,90565.0,0.03313256]
[1768071052638,0.01104057,90575.0,90565.0,0.03313256]
[1768071052802,0.02208,90572.0,90565.0,0.03313256]
[1768071082890,0.02191298,90572.0,90565.0,0.03313256]
[1768071101851,0.02191298,90572.0,90561.0,0.01104228]
[1768071102018,0.02191298,90572.0,90562.0,0.02191298]
[1768071119362,0.02191298,90572.0,90562.0,0.03295513]
[1768071119707,0.02191298,90572.0,90562.0,0.02191298]
[1768071119906,0.02191298,90572.0,90561.0,0.01104228]
[1768071120116,0.02191298,90572.0,90563.0,0.03313256]
[1768071122062,0.02191298,90572.0,90563.0,0.03320652]
[1768071122477,0.02191298,90572.0,90563.0,7.396e-05]
[1768071122794,0.02191298,90572.0,90564.0,0.02191298]
[1768071132138,0.02160156,90572.0,90564.0,0.02191298]
[1768071135163,0.03264249,90572.0,90564.0,0.02191298]
[1768071137476,0.02160156,90572.0,90564.0,0.02191298]
[1768071157870,0.03264249,90572.0,90564.0,0.02191298]
[1768071158038,0.02160156,90572.0,90564.0,0.02191298]
[1768071169840,0.03264249,90572.0,90564.0,0.02191298]
[1768071172897,0.02160156,90572.0,90564.0,0.02191298]
[1768071173324,0.03264249,90572.0,90564.0,0.02191298]
[1768071175123,0.01104106,90571.0,90564.0,0.02191298]
[1768071175334,0.03264249,90572.0,90564.0,0.02191298]
[1768071178894,0.01104106,90571.0,90564.0,0.02191298]
[1768071179078,0.03264249,90572.0,90564.0,0.02191298]
[1768071180735,0.01104106,90571.0,90564.0,0.02191298]
[1768071181313,0.03264249,90572.0,90564.0,0.02191298]
[1768071181520,0.01104106,90571.0,90564.0,0.02191298]
[1768071182048,0.03264249,90572.0,90564.0,0.02191298]
[1768071188619,0.02160156,90572.0,90564.0,0.02191298]
[1768071188823,0.03264249,90572.0,90564.0,0.02191298]
[1768071194538,0.02160156,90572.0,90564.0,0.02191298]
[1768071194834,0.03264249,90572.0,90564.0,0.02191298]
[1768071195290,0.02160156,90572.0,90564.0,0.02191298]
[1768071195467,0.03264249,90572.0,90564.0,0.02191298]
[1768071196194,0.02160156,90572.0,90564.0,0.02191298]
[1768071196396,0.03264249,90572.0,90564.0,0.02191298]
[1768071197323,0.02160156,90572.0,90564.0,0.02191298]
[1768071207224,0.03264249,90572.0,90564.0,0.02191298]
[1768071207581,0.02160156,90572.0,90564.0,0.02191298]
[1768071212885,0.03264249,90572.0,90564.0,0.02191298]
[1768071213195,0.02160156,90572.0,90564.0,0.02191298]
[1768071217413,0.02129001,90572.0,90564.0,0.02191298]
[1768071237023,0.00928982,90572.0,90564.0,0.02191298]
[1768071238770,0.00928982,90572.0,90564.0,0.03295489]
[1768071239090,0.00928982,90572.0,90563.0,7.396e-05]
[1768071239512,0.00928982,90572.0,90565.0,0.03295489]
[1768071262676,0.00928982,90572.0,90563.0,7.396e-05]
[1768071263214,0.00928982,90572.0,90564.0,0.01104069]
[1768071267333,0.00928982,90572.0,90564.0,0.0220826]
[1768071267492,0.02208,90571.0,90564.0,0.01104069]
[1768071268810,0.02208,90571.0,90564.0,0.0220826]
[1768071269309,0.02208,90571.0,90563.0,7.396e-05]
[1768071269508,0.02208,90571.0,90565.0,0.0220826]
[1768071294922,0.02208,90571.0,90563.0,7.396e-05]
[1768071295364,0.02208,90571.0,90564.0,0.0220826]
[1768071303673,0.02208,90571.0,90564.0,0.03312451]
[1768071303833,0.02208,90571.0,90564.0,0.0220826]
[1768071306629,0.02208,90571.0,90564.0,0.03312451]
[1768071307361,0.02208,90571.0,90564.0,0.0220826]
[1768071308526,0.02208,90571.0,90564.0,0.03312451]
[1768071308708,0.02208,90571.0,90564.0,0.0220826]
[1768071309510,0.02208,90571.0,90565.0,0.01104179]
[1768071309709,0.02208,90571.0,90564.0,0.0220826]
[1768071312956,0.02208,90571.0,90564.0,0.03312451]
[1768071313358,0.02208,90571.0,90565.0,0.01104179]
[1768071313542,0.02208,90571.0,90564.0,0.0220826]
[1768071313743,0.02208,90571.0,90565.0,0.01104179]
[1768071314126,0.02208,90571.0,90564.0,0.03312451]
[1768071314379,0.02208,90571.0,90565.0,0.01104179]
[1768071314770,0.02208,90571.0,90564.0,0.03312451]
[1768071314982,0.02208,90571.0,90565.0,0.01104179]
[1768071315189,0.02208,90571.0,90564.0,0.03312451]
[1768071315368,0.02208,90571.0,90565.0,0.01104179]
[1768071315565,0.02208,90571.0,90564.0,0.03312451]
[1768071316826,0.02208,90571.0,90565.0,0.01104179]
[1768071317180,0.02208,90571.0,90564.0,0.03312451]
[1768071317383,0.02208,90571.0,90565.0,0.01104179]
[1768071317560,0.02208,90571.0,90564.0,0.03312451]
[1768071318133,0.02208,90571.0,90565.0,0.01104179]
[1768071318731,0.02208,90571.0,90564.0,0.03312451]
[1768071318940,0.02208,90571.0,90565.0,0.01104179]
[1768071319804,0.02208,90571.0,90564.0,0.03312451]
[1768071320188,0.02208,90571.0,90565.0,0.01104179]
[1768071320606,0.02208,90571.0,90566.0,0.01104167]
[1768071320771,0.02208,90571.0,90565.0,0.01104179]
[1768071320990,0.02208,90571.0,90564.0,0.03312451]
[1768071321239,0.02208,90571.0,90565.0,0.01104179]
[1768071321446,0.02198979,90571.0,90565.0,0.01104179]
[1768071322261,0.02198979,90571.0,90564.0,0.03312451]
[1768071322410,0.02198979,90571.0,90565.0,0.01104179]
[1768071322612,0.02198979,90571.0,90564.0,0.03312451]
[1768071322817,0.02208,90572.0,90564.0,0.03312451]
[1768071323602,0.02208,90572.0,90565.0,0.01104179]
[1768071323802,0.02208,90572.0,90566.0,0.01104167]
[1768071324245,0.02208,90572.0,90564.0,0.03312451]
[1768071324808,0.02208,90572.0,90565.0,0.01104179]
[1768071325141,0.02208,90572.0,90564.0,0.03312451]
[1768071325307,0.02208,90572.0,90567.0,0.01104154]
[1768071325508,0.02208,90572.0,90565.0,0.01104179]
[1768071325731,0.02198979,90572.0,90565.0,0.01104179]
[1768071326144,0.02198979,90572.0,90564.0,0.03312451]
[1768071326362,0.02198979,90572.0,90566.0,0.01104167]
[1768071327132,0.02198979,90572.0,90564.0,0.03312451]
[1768071327350,0.02198979,90572.0,90565.0,0.01104179]
[1768071327556,0.02198979,90572.0,90566.0,0.01104167]
[1768071328369,0.02198979,90572.0,90565.0,0.01104179]
[1768071328590,0.02198979,90572.0,90564.0,0.03312451]
[1768071328778,0.02198979,90572.0,90565.0,0.01104179]
[1768071329834,0.02198979,90572.0,90566.0,0.01104167]
[1768071330332,0.02198979,90572.0,90564.0,0.03312451]
[1768071331122,0.02198979,90572.0,90566.0,0.01104167]
[1768071331331,0.02198979,90572.0,90565.0,0.01104179]
[1768071331889,0.02198979,90572.0,90566.0,0.01104167]
[1768071332432,0.02198979,90572.0,90565.0,0.01104179]
[1768071332647,0.02198979,90572.0,90564.0,0.03312451]
[1768071332949,0.02198979,90572.0,90566.0,0.01104167]
[1768071333154,0.02198979,90572.0,90564.0,0.03312451]
[1768071333308,0.02198979,90572.0,90565.0,0.01104179]
[1768071333495,0.02198979,90572.0,90566.0,0.01104167]
[1768071333698,0.02198979,90572.0,90565.0,0.01104179]
[1768071335182,0.02198979,90572.0,90566.0,0.01104167]
[1768071335490,0.02198979,90572.0,90564.0,0.03312451]
[1768071335988,0.02198979,90572.0,90565.0,0.01104179]
[1768071336500,0.02198979,90572.0,90566.0,0.01104167]
[1768071337710,0.02198979,90572.0,90564.0,0.03312451]
[1768071337848,0.02198979,90572.0,90565.0,0.01104179]
[1768071338307,0.02198979,90572.0,90564.0,0.03312451]
[1768071338742,0.02198979,90572.0,90566.0,0.01104167]
[1768071338913,0.02198979,90572.0,90565.0,0.01104179]
[1768071339318,0.02198979,90572.0,90564.0,0.03312451]
[1768071339493,0.02198979,90572.0,90566.0,0.01104167]
[1768071339688,0.02198979,90572.0,90565.0,0.01104179]
[1768071340240,0.02198979,90572.0,90564.0,0.03312451]
[1768071340447,0.02198979,90572.0,90565.0,0.01104179]
[1768071340650,0.02198979,90572.0,90564.0,0.03312451]
[1768071341300,0.02198979,90572.0,90565.0,0.01104179]
[1768071342247,0.02198979,90572.0,90566.0,0.01104167]
[1768071342456,0.02198979,90572.0,90564.0,0.03312451]
[1768071343398,0.02198979,90572.0,90565.0,0.01104179]
[1768071345397,0.02198979,90572.0,90566.0,0.01104167]
[1768071345559,0.02198979,90572.0,90565.0,0.01104179]
[1768071345998,0.02193328,90572.0,90565.0,0.01104179]
[1768071346378,0.02193328,90572.0,90566.0,0.01104167]
[1768071347138,0.02193328,90572.0,90565.0,0.01104179]
[1768071347286,0.02193328,90572.0,90566.0,0.01104167]
[1768071347637,0.02193328,90572.0,90565.0,0.01104179]
[1768071349247,0.02193328,90572.0,90563.0,0.01111599]
[1768071349551,0.02193328,90572.0,90564.0,0.01104191]
[1768071350269,0.02193328,90572.0,90566.0,0.01104167]
[1768071350659,0.02193328,90572.0,90564.0,0.01104191]
[1768071350866,0.02193328,90572.0,90566.0,0.01104167]
[1768071351671,0.02193328,90572.0,90567.0,0.01104154]
[1768071351875,0.02193328,90572.0,90566.0,0.01104167]
[1768071352720,0.02193328,90572.0,90564.0,0.06625138]
[1768071353216,0.02193328,90572.0,90567.0,0.01104154]
[1768071354738,0.02193328,90572.0,90566.0,0.01104167]
[1768071355247,0.02193328,90572.0,90565.0,0.01104179]
[1768071355398,0.02193328,90572.0,90566.0,0.01104167]
[1768071357223,0.02193328,90572.0,90565.0,0.01104179]
[1768071358961,0.02193328,90572.0,90566.0,0.01104167]
[1768071359490,0.02193328,90572.0,90565.0,0.01104179]
[1768071359663,0.02193328,90572.0,90566.0,0.01104167]
[1768071359865,0.02193328,90572.0,90565.0,0.01104179]
[1768071360163,0.02193328,90572.0,90564.0,0.01104191]
[1768071360663,0.02193328,90572.0,90565.0,0.01104179]
[1768071361012,0.02193328,90572.0,90564.0,0.01104191]
[1768071362213,0.02193328,90572.0,90565.0,0.01104179]
[1768071362357,0.02193328,90572.0,90566.0,0.01104167]
[1768071362556,0.02193328,90572.0,90565.0,0.01104179]
[1768071363143,0.02193328,90572.0,90564.0,0.01104191]
[1768071363594,0.02193328,90572.0,90565.0,0.01104179]
[1768071363959,0.02193328,90572.0,90564.0,0.01104191]
[1768071364160,0.02193328,90572.0,90565.0,0.01104179]
[1768071364382,0.02193328,90572.0,90564.0,0.01104191]
[1768071364699,0.02193328,90572.0,90565.0,0.01104179]
[1768071365122,0.02193328,90572.0,90566.0,0.01104167]
[1768071365313,0.02193328,90572.0,90565.0,0.01104179]
[1768071365882,0.02193328,90572.0,90566.0,0.01104167]
[1768071366539,0.02193328,90572.0,90565.0,0.01104179]
[1768071367593,0.02193328,90572.0,90566.0,0.01104167]
[1768071367817,0.02193328,90572.0,90565.0,0.01104179]
[1768071368595,0.02193328,90572.0,90565.0,0.01099695]
[1768071370002,0.02193328,90572.0,90564.0,0.01104191]
[1768071370764,0.02193328,90572.0,90565.0,0.01104179]
[1768071371171,0.02193328,90572.0,90564.0,0.01104191]
[1768071372285,0.02193328,90572.0,90565.0,0.01104179]
[1768071372492,0.02193328,90572.0,90564.0,0.01104191]
[1768071374227,0.02193328,90572.0,90565.0,0.01104179]
[1768071374407,0.02193328,90572.0,90564.0,0.01104191]
[1768071375083,0.02193328,90572.0,90563.0,0.0221579]
[1768071375427,0.02193328,90572.0,90564.0,0.01104191]
[1768071380359,0.02193328,90572.0,90565.0,0.01104179]
[1768071380577,0.02193328,90572.0,90563.0,0.0221579]
[1768071380997,0.02193328,90572.0,90564.0,0.01104191]
[1768071382014,0.02193328,90572.0,90565.0,0.01104179]
[1768071382159,0.02193328,90572.0,90566.0,0.01104167]
[1768071382907,0.02193328,90572.0,90565.0,0.01104179]
[1768071383518,0.02193328,90572.0,90564.0,0.06625142]
[1768071383519,0.02193328,90572.0,90564.0,0.01104191]
[1768071383656,0.02193328,90572.0,90565.0,0.01104179]
[1768071384694,0.02193328,90572.0,90566.0,0.01104167]
[1768071385034,0.02193328,90572.0,90564.0,0.01104191]
[1768071385035,0.02193328,90572.0,90565.0,0.01104179]
[1768071387309,0.02193328,90572.0,90566.0,0.01104167]
[1768071390201,0.02193328,90572.0,90565.0,0.01104179]
[1768071391872,0.02193328,90572.0,90565.0,0.01099695]
[1768071393959,0.02193328,90572.0,90565.0,0.01104179]
[1768071394312,0.02193328,90572.0,90566.0,0.01104167]